{"text_format":"1","workbook":"xlsx","n_sheets":3,"sheets":[" Partner Reg. Form (EN)","Partner Reg. Form (ES)","Data Val"],"not_rendered":{"charts":0,"images":1,"macros":1,"external_links":0,"defined_names":1,"comments":0,"pivot_tables":0},"unopened":[],"bounds":{"document_bytes":16777216,"sheet_cells":100000,"rows_first":2000,"rows_last":500,"rows_between":2000,"halvings":0,"cell_chars":16384,"cell_head_chars":4096},"cells_cut":0,"cells_raw":0,"read":"whole","date_system":"1900"}

{"sheet":" Partner Reg. Form (EN)","index":0,"n_rows":68,"n_cols":48,"rows_kept":68,"cut":false,"hidden":false,"merged":[[62,0,62,14],[64,0,64,14],[67,0,67,14],[6,0,6,45],[5,0,5,8],[5,17,5,33],[5,37,5,45],[5,34,5,36],[18,17,18,43],[27,23,27,28],[27,29,27,45],[23,0,23,3],[25,0,25,45],[26,0,26,5],[26,6,26,22],[22,23,22,26],[23,4,23,16],[23,21,23,45],[16,22,16,32],[16,33,16,45],[17,0,17,21],[17,22,17,45],[5,10,5,15],[60,0,60,14],[58,0,58,14],[20,0,20,45],[21,0,21,5],[21,6,21,7],[21,8,21,13],[21,14,21,26],[21,27,21,32],[21,33,21,45],[35,31,35,40],[35,41,35,45],[34,0,34,6],[34,7,34,14],[26,23,26,28],[26,29,26,45],[27,0,27,5],[34,15,34,21],[34,22,34,24],[34,25,34,32],[34,33,34,45],[31,0,31,45],[38,0,38,18],[38,19,38,20],[38,21,38,33],[32,7,32,14],[15,19,15,25],[35,7,35,9],[0,8,2,45],[3,8,3,45],[8,0,8,45],[9,0,9,45],[10,0,10,45],[15,17,15,18],[14,0,14,10],[14,11,14,16],[14,17,14,18],[14,19,14,25],[14,26,14,27],[14,34,14,35],[15,6,15,16],[14,43,14,44],[14,36,14,42],[14,28,14,33],[15,34,15,35],[11,12,11,45],[13,26,13,45],[15,0,15,5],[15,26,15,27],[11,0,11,11],[15,28,15,33],[12,10,12,45],[12,0,12,9],[22,0,22,3],[35,10,35,17],[35,18,35,30],[51,0,51,6],[51,7,51,23],[52,0,54,6],[52,7,54,23],[44,25,44,36],[49,0,49,45],[42,0,42,45],[45,0,45,45],[46,0,46,45],[52,24,54,28],[52,29,54,45],[51,29,51,45],[43,37,43,45],[44,37,44,45],[43,0,43,22],[43,23,43,24],[43,25,43,36],[48,0,48,45],[32,15,32,45],[28,0,28,10],[28,11,28,22],[28,23,28,28],[28,29,28,35],[28,36,28,39],[28,40,28,45],[32,5,32,6],[35,0,35,6],[32,0,32,4],[38,34,38,35],[23,17,23,20],[7,0,7,45],[38,36,38,45],[41,0,41,45],[36,0,36,6],[36,7,36,26],[36,27,36,33],[36,34,36,45],[37,0,37,3],[37,4,37,45],[39,0,39,18],[39,19,39,24],[27,6,27,22],[33,0,33,5],[33,6,33,45],[18,44,18,45],[16,0,16,11],[16,12,16,21],[22,33,22,45],[22,4,22,16],[22,27,22,32],[18,0,18,6],[18,7,18,16]]}
[null,null,null,null,null,null,null,null,"UNHCR PARTNER REGISTRATION FORM"]
[]
[]
[null,null,null,null,null,null,null,null,"ERP Supplier records for Not-for-Profit entities"]
[]
["This form is being submitted to A. (",null,null,null,null,null,null,null,null,null,") register a partner; or B (",null,null,null,null,null,null,") update an existing partner record.  If B. the registration Number is:",null,null,null,null,null,null,null,null,null,null,null,null,null,null,null,null,null,null,null,"If B., use the column on the right"]
["to mark any changed records."]
["Fields marked with (*) are mandatory. Pleae fill the form in sequential order starting from the top. Some fields are inter-dependent, leaving those empty will block you from filling the rest of the fields.",null,null,null,null,null,null,null,null,null,null,null,null,null,null,null,null,null,null,null,null,null,null,null,null,null,null,null,null,null,null,null,null,null,null,null,null,null,null,null,null,null,null,null,null,null,null,"Change?"]
["Section 1: Organization's Details and General Information"]
["1.1 Organization's name (full legal name)(*):",null,null,null,null,null,null,null,null,null,null,null,null,null,null,null,null,null,null,null,null,null,null,null,null,null,null,null,null,null,null,null,null,null,null,null,null,null,null,null,null,null,null,null,null,null,null,"Change?"]
[]
["1.2 Other names (alias, acronym,etc.):"]
["1.3. Organization's Website:"]
["1.4 Parent Organization (If applicable; full legal name of headquarters or umbrella organization):"]
["1.5 Type of Organization (mark one)(*):",null,null,null,null,null,null,null,null,null,null,"International NGO",null,null,null,null,null,null,null,"National NGO",null,null,null,null,null,null,null,null,"Government entity",null,null,null,null,null,null,null,"Red Cross/Crescent "]
[null,null,null,null,null,null,"Community Based Organization (CBO)",null,null,null,null,null,null,null,null,null,null,null,null,"UN System Organization",null,null,null,null,null,null,null,null,"Academic Institution"]
["1.6 TAX Registration No (if applicable): ",null,null,null,null,null,null,null,null,null,null,null,null,null,null,null,null,null,null,null,null,null,"1.7 Tax Payer ID (if applicable):"]
["1.8 TAX Organization Type (if applicable): "]
["1.9 Tax Country \n(if applicable):",null,null,null,null,null,null,null,null,null,null,null,null,null,null,null,null,"1.10  Indicate availability of VAT No./ Tax ID Certificate/Proof (if applicable):"]
[]
["Section 2: Address",null,null,null,null,null,null,null,null,null,null,null,null,null,null,null,null,null,null,null,null,null,null,null,null,null,null,null,null,null,null,null,null,null,null,null,null,null,null,null,null,null,null,null,null,null,null,"Change?"]
["2.1 Country Code(*):",null,null,null,null,null,null,null,"2.2 Address Line 1(*):",null,null,null,null,null,null,null,null,null,null,null,null,null,null,null,null,null,null,"2.3 Address Line 2:"]
["2.4 City(*):",null,null,null,null,null,null,null,null,null,null,null,null,null,null,null,null,"2.5 Postal code(*):",null,null,null,null,null,null,null,null,null,"2.6 Canton/State:"]
["2.7 Email (*):",null,null,null,null,null,null,null,null,null,null,null,null,null,null,null,null,"2.8 Website:"]
[]
["Section 3: Contacts",null,null,null,null,null,null,null,null,null,null,null,null,null,null,null,null,null,null,null,null,null,null,null,null,null,null,null,null,null,null,null,null,null,null,null,null,null,null,null,null,null,null,null,null,null,null,"Change?"]
["3.1 First Name (*):",null,null,null,null,null,null,null,null,null,null,null,null,null,null,null,null,null,null,null,null,null,null,"3.2 Last Name (*):"]
["3.4 Title (*):",null,null,null,null,null,null,null,null,null,null,null,null,null,null,null,null,null,null,null,null,null,null,"3.5 Email (*):"]
["3.6 International Country Code (*):",null,null,null,null,null,null,null,null,null,null,null,null,null,null,null,null,null,null,null,null,null,null,"3.7 Telephone (*):",null,null,null,null,null,null,null,null,null,null,null,null,"3.8 Tel. Ext.: "]
[]
["Section 4:  Banking Information     \n"]
["Note: \n1: Upon initial registration, this section may remain blank.  Banking details will, however, be required before UNHCR can provide funding.\n2: If a change to a bank account is being requested, it is important to note that UNHCR may not be able to stop the transfer of funds that are already in the process of being transferred to an old bank account.",null,null,null,null,null,null,null,null,null,null,null,null,null,null,null,null,null,null,null,null,null,null,null,null,null,null,null,null,null,null,null,null,null,null,null,null,null,null,null,null,null,null,null,null,null,null,"Change?"]
["4.1 Country (*):",null,null,null,null,null,null,"4.2 Pay to Bank Name(*):"]
["4.3 Branch Name:"]
["4.4 Account Type (*):",null,null,null,null,null,null,null,null,null,null,null,null,null,null,"4.5 Currency Code (*):",null,null,null,null,null,null,null,null,null,"4.6 Bank Account No. (*):"]
["4.7 DFI Qualifier (*): ",null,null,null,null,null,null,null,null,null,"4.8 Bank Account/IBAN (*):",null,null,null,null,null,null,null,null,null,null,null,null,null,null,null,null,null,null,null,null,"4.9 DFI ID (*):"]
["4.10 Address Line 1(*):",null,null,null,null,null,null,null,null,null,null,null,null,null,null,null,null,null,null,null,null,null,null,null,null,null,null,"4.11 Address Line 2:"]
["4.12 City (*):"]
["4.13 Bank account statement available (BAS) \"Yes/No\" ? (*)",null,null,null,null,null,null,null,null,null,null,null,null,null,null,null,null,null,null,null,null,"4.14 BAS translation available in English?:"]
["4.15 Effective date of changes in banking details"]
[]
["Section 5: UN Partner Portal link for declarations and further information"]
["Part A\nIf your organization is an NGO, INGO, Academic Institution, CBO, or Red Cross/Cresent, you must successfully register on the UN Partner Portal.  If you are registered on the UN Partner Portal, please ensure that the information below is consistent with your Portal registration.",null,null,null,null,null,null,null,null,null,null,null,null,null,null,null,null,null,null,null,null,null,null,null,null,null,null,null,null,null,null,null,null,null,null,null,null,null,null,null,null,null,null,null,null,null,null,"Change?"]
["5.1 Is your organization already registered on the United Nations Partner Portal (*)",null,null,null,null,null,null,null,null,null,null,null,null,null,null,null,null,null,null,null,null,null,null,null,null,"UN Partner Portal 'Partner ID':"]
[null,null,null,null,null,null,null,null,null,null,null,null,null,null,null,null,null,null,null,null,null,null,null,null,null,"HQ Profile 'Partner ID' (if applicable):"]
["Part B:  For all organizations not registered on the UN Partner Portal: \nSelf-Declaration: I, the undersigned, declare that:"]
["(a)Our organization is not involved in any fraudulent or corrupt activities and has not been in the past, and is not currently under any investigation forany such activities which would render our company unsuitable for business dealing with UNHCR.\n\n(b)Our organization is not on, or associated with a company or individual, groups, undertakings and entities that are on the consolidated listestablished and maintained by the committee established by the UN Resolution No. 1267 (www.un.org/sc/committees/1267/consolist.html).\n\n(c)Our organisation is not on, or associated with a company or individual that are subject to the list of Independent Inquiry Committee into UnitedNations Oil-for-food programme (www.iic-offp.org).\n\n(d)Our organization is not currently removed, invalidated or suspended by any other UN Headquarters, or Field Offices or any other UN Agencies(including the World Bank)"]
[]
["Section 6: Certification"]
["I warrant that the information provided in this form is correct and, in the event of changes, details will be provided as soon as possible."]
[]
["Full Name (*):",null,null,null,null,null,null,null,null,null,null,null,null,null,null,null,null,null,null,null,null,null,null,null,"Functional title(*):"]
["Stamp and Signature (*):",null,null,null,null,null,null,null,null,null,null,null,null,null,null,null,null,null,null,null,null,null,null,null,"Date (dd/mm/yyyy):"]
[]
[]
[]
["Section 6:  Processing"]
[]
["Reviewed by (insert Programme Officer):  ",null,null,null,null,null,null,null,null,null,null,null,null,null,null,"Last Name:",null,null,null,null,null,null,"First Name:",null,null,null,null,null,null,null,"Title:",null,null,null,null,null,null,"Email:"]
[]
["Entered by (insert Supplier Officer)",null,null,null,null,null,null,null,null,null,null,null,null,null,null,"Last Name:",null,null,null,null,null,null,"First Name:",null,null,null,null,null,null,null,"Title:",null,null,null,null,null,null,"Email:"]
[]
["Registration number given:  (inserted by Supplier Officer) "]
[]
["Site number given: (inserted by Supplier Officer)"]
["Each partner record should have only one site. Never add or delete a site without prior express approval from DSPR"]
[]
["Instructions:  Send back to Programme Officer.  "]

{"sheet":"Partner Reg. Form (ES)","index":1,"n_rows":68,"n_cols":48,"rows_kept":68,"cut":false,"hidden":false,"merged":[[58,0,58,14],[60,0,60,14],[62,0,62,14],[64,0,64,14],[67,0,67,14],[51,0,51,6],[51,7,51,23],[51,24,51,28],[51,29,51,45],[52,0,54,6],[52,7,54,23],[52,24,54,28],[52,29,54,45],[44,25,44,36],[44,37,44,45],[45,0,45,45],[46,0,46,45],[48,0,48,45],[49,0,49,45],[41,0,41,45],[42,0,42,45],[43,0,43,22],[43,23,43,24],[43,25,43,36],[43,37,43,45],[38,0,38,18],[38,19,38,20],[38,21,38,33],[38,34,38,35],[38,36,38,45],[39,0,39,18],[39,19,39,24],[36,0,36,6],[36,7,36,26],[36,27,36,33],[36,34,36,45],[37,0,37,3],[37,4,37,45],[35,0,35,6],[35,7,35,9],[35,10,35,17],[35,18,35,30],[35,31,35,40],[35,41,35,45],[33,0,33,5],[33,6,33,45],[34,0,34,6],[34,7,34,14],[34,15,34,21],[34,22,34,24],[34,25,34,32],[34,33,34,45],[30,0,30,10],[31,0,31,45],[32,0,32,4],[32,5,32,6],[32,7,32,14],[32,15,32,45],[27,0,27,5],[27,6,27,22],[27,23,27,28],[27,29,27,45],[28,0,28,10],[28,11,28,22],[28,23,28,28],[28,29,28,35],[28,36,28,39],[28,40,28,45],[23,0,23,3],[23,4,23,16],[23,17,23,20],[23,21,23,45],[25,0,25,45],[26,0,26,5],[26,6,26,22],[26,23,26,28],[26,29,26,45],[21,33,21,45],[22,0,22,3],[22,4,22,16],[22,17,22,22],[22,23,22,26],[22,27,22,32],[22,33,22,45],[18,0,18,6],[18,7,18,16],[18,17,18,43],[18,44,18,45],[20,0,20,45],[21,0,21,5],[21,6,21,7],[21,8,21,13],[21,14,21,26],[21,27,21,32],[16,0,16,11],[16,12,16,21],[16,22,16,32],[16,33,16,45],[17,0,17,11],[17,12,17,45],[14,34,14,35],[14,36,14,42],[14,43,14,44],[15,0,15,5],[15,6,15,16],[15,17,15,18],[15,19,15,25],[15,26,15,27],[15,28,15,33],[15,34,15,35],[12,0,12,9],[12,10,12,45],[13,0,13,25],[13,26,13,45],[14,0,14,10],[14,11,14,16],[14,17,14,18],[14,19,14,25],[14,26,14,27],[14,28,14,33],[7,0,7,45],[8,0,8,45],[9,0,9,45],[10,0,10,45],[11,0,11,11],[11,12,11,45],[0,8,2,45],[3,8,3,45],[5,0,5,8],[5,10,5,15],[5,17,5,33],[5,34,5,36],[5,37,6,45],[6,0,6,36]]}
[null,null,null,null,null,null,null,null,"UNHCR PARTNER REGISTRATION FORM"]
[]
[]
[null,null,null,null,null,null,null,null,"Para entidades sin fines de lucro"]
[]
["Este formulario está dirigida para:  A. (",null,null,null,null,null,null,null,null,null,") Registrar un socio; o B (",null,null,null,null,null,null,") actualizar un registro actual.  De ser B, su numero de registro es:",null,null,null,null,null,null,null,null,null,null,null,null,null,null,null,null,null,null,null,"De ser  B, utilice la columna de la derecha para marcar cualquier cambio"]
[]
["Campos marcadas con  (*) son de carácter obligatorio. Por favor, complete el formulario en manera secuencial a partir de la parte superior. Algunos campos son interdependientes, si se deja estos vacios lo bloquará de completar el formato.",null,null,null,null,null,null,null,null,null,null,null,null,null,null,null,null,null,null,null,null,null,null,null,null,null,null,null,null,null,null,null,null,null,null,null,null,null,null,null,null,null,null,null,null,null,null,"Cambió?"]
["Sección 1: Detalles de la organización e información general"]
["1.1 Nombre de la Organización (nombre legal completo)(*):",null,null,null,null,null,null,null,null,null,null,null,null,null,null,null,null,null,null,null,null,null,null,null,null,null,null,null,null,null,null,null,null,null,null,null,null,null,null,null,null,null,null,null,null,null,null,"Cambió?"]
[]
["1.2 Otros nombres (Alias, acrónimos, etc.):"]
["1.3. Sitio web de la organización:"]
["1.4 Organización Matriz (Si es aplicable; proveer el nombre legal completo de la sede o organización parágüas):"]
["1.5 Tipo de Organización (marque solo una)(*):",null,null,null,null,null,null,null,null,null,null,"ONG Internacional",null,null,null,null,null,null,null,"ONG Nacional",null,null,null,null,null,null,null,null,"Entidad Gubernamental",null,null,null,null,null,null,null,"Cruz Roja/Media Luna Roja(IFRC)"]
[null,null,null,null,null,null,"Organización de base comunitaria",null,null,null,null,null,null,null,null,null,null,null,null,"Organización del sistema de la ONU",null,null,null,null,null,null,null,null,"Institución Académica"]
["1.6 Numero de Registro de impuestos (si corresponde): ",null,null,null,null,null,null,null,null,null,null,null,null,null,null,null,null,null,null,null,null,null,"1.7 Identificación del contribuyente (si corresponde):"]
["1.8 Tipo de organización fiscal  (si corresponde): "]
["1.9 País de Impuesto\n (si corresponde):",null,null,null,null,null,null,null,null,null,null,null,null,null,null,null,null,"1.10  Indique la disponibilidad del No. IVA/ Certificado de identificación fiscal/Prueba de impuesto (si corresponde):"]
[]
["Sección 2: Dirección",null,null,null,null,null,null,null,null,null,null,null,null,null,null,null,null,null,null,null,null,null,null,null,null,null,null,null,null,null,null,null,null,null,null,null,null,null,null,null,null,null,null,null,null,null,null,"Cambió?"]
["2.1 Codigo del País(*):",null,null,null,null,null,null,null,"2.2 Linea de domicilio 1(*):",null,null,null,null,null,null,null,null,null,null,null,null,null,null,null,null,null,null,"2.3 Linea de domicilio 2:"]
["2.4 Ciudad(*):",null,null,null,null,null,null,null,null,null,null,null,null,null,null,null,null,"2.5 Codigo Postal(*):",null,null,null,null,null,null,null,null,null,"2.6 Estado:"]
["2.7 Correo (*):",null,null,null,null,null,null,null,null,null,null,null,null,null,null,null,null,"2.8 Sitio Web:"]
[]
["Sección 3: Contacto",null,null,null,null,null,null,null,null,null,null,null,null,null,null,null,null,null,null,null,null,null,null,null,null,null,null,null,null,null,null,null,null,null,null,null,null,null,null,null,null,null,null,null,null,null,null,"Cambió?"]
["3.1 Nombre (*):",null,null,null,null,null,null,null,null,null,null,null,null,null,null,null,null,null,null,null,null,null,null,"3.2 Apellido (*):"]
["3.4 Título (*):",null,null,null,null,null,null,null,null,null,null,null,null,null,null,null,null,null,null,null,null,null,null,"3.5 Correo (*):"]
["3.6 Codigo Internacional del País (*):",null,null,null,null,null,null,null,null,null,null,null,null,null,null,null,null,null,null,null,null,null,null,"3.7 Telefono(*):",null,null,null,null,null,null,null,null,null,null,null,null,"3.8 Extensión.: "]
[]
["Sección 4: Información Bancaria "]
["Nota:\n1: Al registrarse inicialmente, esta sección puede permanecer en blanco. Sin embargo, se requerirán los detalles bancarios antes de que el ACNUR pueda proporcionar financiamiento. \n2: Si se solicita un cambio de cuenta bancaria, es importante tener en cuenta que el ACNUR puede no poder detener la transferencia de fondos que ya están en proceso de ser transferidos a una cuenta bancaria antigua",null,null,null,null,null,null,null,null,null,null,null,null,null,null,null,null,null,null,null,null,null,null,null,null,null,null,null,null,null,null,null,null,null,null,null,null,null,null,null,null,null,null,null,null,null,null,"Cambió?"]
["4.1 País (*):",null,null,null,null,null,null,"4.2 Nombre del Banco(*):"]
["4.3 Nombre de la sucursal:"]
["4.4 Tipo de Cuenta (*):",null,null,null,null,null,null,null,null,null,null,null,null,null,null,"4.5 Codigo de Moneda(*):",null,null,null,null,null,null,null,null,null,"4.6 Numero De Cuenta de Banco(*):"]
["4.7 Cualificador DFI(*): ",null,null,null,null,null,null,null,null,null,"4.8 Numero de IBAN (*):",null,null,null,null,null,null,null,null,null,null,null,null,null,null,null,null,null,null,null,null,"4.9 DFI ID (*):"]
["4.10 Linea de domicilio(*):",null,null,null,null,null,null,null,null,null,null,null,null,null,null,null,null,null,null,null,null,null,null,null,null,null,null,"4.11 Linea de domicilio 2:"]
["4.12 Ciudad (*):"]
["4.13 Extracto de cuenta bancario (ECB) disponible \"Si/No\" ? (*)",null,null,null,null,null,null,null,null,null,null,null,null,null,null,null,null,null,null,null,null,"4.14 El ECB puede ser adquirido en inglés?:"]
["4.15 Entrada en vigor de la fecha de los cambios en los detalles bancarios (si corresponde)"]
[]
["Sección 5: Link del Portal de Socios de Naciones Unidas, verificación de declaraciones e información adicional de la organización"]
["Part A\nSi su organización es Nacional (ONG)), Internacional (INGO), Institución Academica, de Base Comunitaria (CBO), o Cruz Roja, debe registrarse satisfactoriamente en el portal de socios de las Naciones Unidas (UNPP). Si ya se encuentra registrado, por favor, asegure que la siguiente información sea consistente con el Portal del Registro.",null,null,null,null,null,null,null,null,null,null,null,null,null,null,null,null,null,null,null,null,null,null,null,null,null,null,null,null,null,null,null,null,null,null,null,null,null,null,null,null,null,null,null,null,null,null,"Cambió?"]
["5.1 Su organización está registrada actualmente en el Portal de Socios de las Naciones Unidas?(*)",null,null,null,null,null,null,null,null,null,null,null,null,null,null,null,null,null,null,null,null,null,null,null,null," 'Partner ID' del Portal de Socios de UN:"]
[null,null,null,null,null,null,null,null,null,null,null,null,null,null,null,null,null,null,null,null,null,null,null,null,null,"Perfil de HQ 'Partner ID' (si corresponde):"]
["Parte B: Para las organizaciones no registradas en el Portal de socios de UN\nAutodeclaración: Yo, el firmante, declaro qué:"]
["(a) Nuestra organización no está involucrada en actividades fraudulentas o corruptas y no lo ha estado en el pasado, ni está actualmente bajo investigación por tales actividades, lo que la haría inadecuada para hacer acuerdos con el ACNUR.\n\n(b) Nuestra organización no está en, o asociaciada a una empresa o individuo, grupos, empresas o entidades que estén en la lista consolidada, establecida y manteinda por el comité creado por la Resolución de la ONU N.º 1267 (www.un.org/sc/committees/1267/consolist.html).\n\n(c) Nuestra organización no está en, o asociada con una empresa o individuo que están sujetos a la lista del Comité de Investigación Independiente sobre el programa Petróleo por Alimentos de las Naciones Unidas (ww.iic-offp.org).\n\n(d) Nuestra organización no ha sido eliminada, invalidada o suspendida actualmente por ninguna otra sede de las Naciones Unidas, oficinas de campo u otras agencias de la ONU (incluido el Banco Mundial)"]
[]
["Sección 6: Certificación"]
["Garantizamos que la información provista en este formulario es correcta y, en la eventualidad de cambios, los detalles serán actualizados lo más pronto posible."]
[]
["Nombre Completo (*):",null,null,null,null,null,null,null,null,null,null,null,null,null,null,null,null,null,null,null,null,null,null,null,"Título Funcional(*):"]
["Sello y Firma (*):",null,null,null,null,null,null,null,null,null,null,null,null,null,null,null,null,null,null,null,null,null,null,null,"Fecha (dd/mm/aaaa):"]
[]
[]
[]
["Section 6: Procesamiento"]
[]
["Revisado por (Oficial en Programas):",null,null,null,null,null,null,null,null,null,null,null,null,null,null,"Apellido:",null,null,null,null,null,null,"Nombre:",null,null,null,null,null,null,null,"Título:",null,null,null,null,null,null,"Correo:"]
[]
["Introducido por (Oficial de Suministro)",null,null,null,null,null,null,null,null,null,null,null,null,null,null,"Apellido:",null,null,null,null,null,null,"Nombre:",null,null,null,null,null,null,null,"Título:",null,null,null,null,null,null,"Correo:"]
[]
["Numero de registro provisto:  (introducido por el Oficial de Suministro) "]
[]
["Numero provisto de 'Site': (introducido por el Oficial de Suministro)"]
["Cada registro socio debe de tener únicamente un solo 'Site'. No se debe agregar o eliminar un 'Site' sin la aprobación de DSPR"]
[]
["Instrucciones: Para enviar de vuelta al Oficial en Programa."]

{"sheet":"Data Val","index":2,"n_rows":271,"n_cols":14,"rows_kept":271,"cut":false,"hidden":true,"merged":[]}
["X/space","Y/N","Country","Country Code","LG code","Local Currency","Country ","Country code","International dialing","International Country code for Telephone",null,"State or territory","Currency","Currancy with Symbol"]
[null,"Yes","Afghanistan","AFG","af-a",null,"Afghanistan ","AF","+93",{"$f":"G2&  I2","v":"Afghanistan +93"},null,"Abkhazia","Abkhazian apsar","Abkhazian apsar"]
["X","No","Albania","ALB","sq","AFN - Afghan afghani","Albania ","AL","+355",{"$f":"G3&  I3","v":"Albania +355"},null,"Abkhazia","Russian ruble","RUB - Russian ruble"]
[null,null,"Algeria","DZA","ar-dz","EUR - European euro","Algeria ","DZ","+213","Algeria +213",null,"Afghanistan","Afghan afghani","AFN - Afghan afghani"]
[null,null,"American Samoa","ASM","ar-bh","ALL - Albanian lek","American Samoa   ","AS","+1-684","American Samoa   +1-684",null,"Akrotiri and Dhekelia","Euro","EUR - Euro"]
[null,null,"Andorra","AND","ar-eg","DZD - Algerian dinar","Andorra ","AD","+376","Andorra +376",null,"Albania","Albanian lek","ALL - Albanian lek"]
[null,null,"Angola","AGO","ar-iq","AOA - Angolan kwanza","Angola ","AO","+244","Angola +244",null,"Algeria","Algerian dinar","DZD - Algerian dinar"]
[null,null,"Anguilla","AIA","ar-jo","XCD - East Caribbean dollar","Anguilla ","AI","+1-264","Anguilla +1-264",null,"Andorra","Euro","EUR - Euro"]
[null,null,"Antarctica","ATA","ar-kw","ARS - Argentine peso","Antarctica ","AQ","+672","Antarctica +672",null,"Angola","Angolan kwanza","AOA - Angolan kwanza"]
[null,null,"Antigua and Barbuda","ATG","ar-lb","AMD - Armenian dram","Antigua and Barbuda ","AG","+1-268","Antigua and Barbuda +1-268",null,"Anguilla","Eastern Caribbean dollar","XCD - Eastern Caribbean dollar"]
[null,null,"Argentina","ARG","ar-ly","AWG - Aruban florin","Argentina ","AR","+54","Argentina +54",null,"Antigua and Barbuda","Eastern Caribbean dollar","XCD - Eastern Caribbean dollar"]
[null,null,"Armenia","ARM","ar-ma","SHP - Saint Helena pound","Armenia ","AM","+374","Armenia +374",null,"Argentina","Argentine peso","ARS - Argentine peso"]
[null,null,"Aruba","ABW","ar-om","AUD - Australian dollar","Aruba ","AW","+297","Aruba +297",null,"Armenia","Armenian dram","AMD - Armenian dram"]
[null,null,"Australia","AUS","ar-qa","AZN - Azerbaijan manat","Australia ","AU","+61","Australia +61",null,"Artsakh","Artsakh dram","Artsakh dram"]
[null,null,"Austria","AUT","ar-sa"," - B","Austria ","AT","+43","Austria +43",null,"Artsakh","Armenian dram","AMD - Armenian dram"]
[null,null,"Azerbaijan","AZE","ar-sy","BSD - Bahamian dollar","Azerbaijan or Azerbaidjan (Former Azerbaijan Soviet Socialist Republic) ","AZ","+994","Azerbaijan or Azerbaidjan (Former Azerbaijan Soviet Socialist Republic) +994",null,"Aruba","Aruban florin","AWG - Aruban florin"]
[null,null,"Bahamas (the)","BHS","ar-tn","BHD - Bahraini dinar","Bahamas  ","BS","+1-242","Bahamas  +1-242",null,"Ascension Island","Saint Helena pound","SHP - Saint Helena pound"]
[null,null,"Bahrain","BHR","ar-ae","BDT - Bangladeshi taka","Bahrain, Kingdom of (Former Dilmun) ","BH","+973","Bahrain, Kingdom of (Former Dilmun) +973",null,"Australia","Australian dollar","AUD - Australian dollar"]
[null,null,"Bangladesh","BGD","ar-ye","BBD - Barbadian dollar","Bangladesh (Former East Pakistan) ","BD","+880","Bangladesh (Former East Pakistan) +880",null,"Austria","Euro","EUR - Euro"]
[null,null,"Barbados","BRB","eu","BYN - Belarusian ruble","Barbados ","BB","+1-246","Barbados +1-246",null,"Azerbaijan","Azerbaijani manat","AZN - Azerbaijani manat"]
[null,null,"Belarus","BLR","be","BZD - Belize dollar","Belarus (Former Belorussian [Byelorussian] Soviet Socialist Republic) ","BY","+375","Belarus (Former Belorussian [Byelorussian] Soviet Socialist Republic) +375",null,"Bahamas, The","Bahamian dollar","BSD - Bahamian dollar"]
[null,null,"Belgium","BEL","bg","XOF - West African CFA franc","Belgium ","BE","+32","Belgium +32",null,"Bahrain","Bahraini dinar","BHD - Bahraini dinar"]
[null,null,"Belize","BLZ","ca","BMD - Bermudian dollar","Belize (Former British Honduras)  ","BZ","+501","Belize (Former British Honduras)  +501",null,"Bangladesh","Bangladeshi taka","BDT - Bangladeshi taka"]
[null,null,"Benin","BEN","zh-hk","BTN - Bhutanese ngultrum","Benin (Former Dahomey) ","BJ","+229","Benin (Former Dahomey) +229",null,"Barbados","Barbadian dollar","BBD - Barbadian dollar"]
[null,null,"Bermuda","BMU","zh-cn","BOB - Bolivian boliviano","Bermuda ","BM","+1-441","Bermuda +1-441",null,"Belarus","Belarusian ruble","BYN - Belarusian ruble"]
[null,null,"Bhutan","BTN","zh-sg","BAM - Bosnia and Herzegovina convertible mark","Bhutan ","BT","+975","Bhutan +975",null,"Belgium","Euro","EUR - Euro"]
[null,null,"Bolivia (Plurinational State of)","BOL","zh-tw","BWP - Botswana pula","Bolivia ","BO","+591","Bolivia +591",null,"Belize","Belize dollar","BZD - Belize dollar"]
[null,null,"Bonaire, Sint Eustatius and Saba","BES","hr","BRL - Brazilian real","Bosnia and Herzegovina ","BA","+387","Bosnia and Herzegovina +387",null,"Benin","West African CFA franc","XOF - West African CFA franc"]
[null,null,"Bosnia and Herzegovina","BIH","cs","BND - Brunei dollar","Botswana (Former Bechuanaland) ","BW","+267","Botswana (Former Bechuanaland) +267",null,"Bermuda","Bermudian dollar","BMD - Bermudian dollar"]
[null,null,"Botswana","BWA","da","BGN - Bulgarian lev","Brazil  ","BR","+55","Brazil  +55",null,"Bhutan","Bhutanese ngultrum","BTN - Bhutanese ngultrum"]
[null,null,"Bouvet Island","BVT","nl-be","BIF - Burundi franc","Brunei (Negara Brunei Darussalam) ","BN","+673","Brunei (Negara Brunei Darussalam) +673",null,"Bhutan","Indian rupee","INR - Indian rupee"]
[null,null,"Brazil","BRA","nl"," - C","Bulgaria ","BG","+359","Bulgaria +359",null,"Bolivia","Bolivian boliviano","BOB - Bolivian boliviano"]
[null,null,"British Indian Ocean Territory (the)","IOT","en","CVE - Cape Verdean escudo","Burkina Faso (Former Upper Volta) ","BF","+226","Burkina Faso (Former Upper Volta) +226",null,"Bonaire","United States dollar","USD - United States dollar"]
[null,null,"Brunei Darussalam","BRN","en-au","KHR - Cambodian riel","Burundi (Former Urundi) ","BI","+257","Burundi (Former Urundi) +257",null,"Bosnia and Herzegovina","Bosnia and Herzegovina convertible mark","BAM - Bosnia and Herzegovina convertible mark"]
[null,null,"Bulgaria","BGR","en-bz","XAF - Central African CFA franc","Cambodia, Kingdom of (Former Khmer Republic, Kampuchea Republic) ","KH","+855","Cambodia, Kingdom of (Former Khmer Republic, Kampuchea Republic) +855",null,"Botswana","Botswana pula","BWP - Botswana pula"]
[null,null,"Burkina Faso","BFA","en-ca","CAD - Canadian dollar","Cameroon (Former French Cameroon) ","CM","+237","Cameroon (Former French Cameroon) +237",null,"Brazil","Brazilian real","BRL - Brazilian real"]
[null,null,"Burundi","BDI","en-ie","KYD - Cayman Islands dollar","Canada ","CA","+1","Canada +1",null,"British Indian Ocean Territory","United States dollar","USD - United States dollar"]
[null,null,"Cabo Verde","CPV","en-jm","NZD - New Zealand dollar","Cape Verde ","CV","+238","Cape Verde +238",null,"British Virgin Islands","United States dollar","USD - United States dollar"]
[null,null,"Cambodia","KHM","en-nz","CLP - Chilean peso","Cayman Islands ","KY","+1-345","Cayman Islands +1-345",null,"Brunei","Brunei dollar","BND - Brunei dollar"]
[null,null,"Cameroon","CMR","en-za","CNY - Chinese Yuan Renminbi","Central African Republic ","CF","+236","Central African Republic +236",null,"Brunei","Singapore dollar","SGD - Singapore dollar"]
[null,null,"Canada","CAN","en-tt","COP - Colombian peso","Chad ","TD","+235","Chad +235",null,"Bulgaria","Bulgarian lev","BGN - Bulgarian lev"]
[null,null,"Cayman Islands (the)","CYM","en-gb","KMF - Comorian franc","Chile ","CL","+56","Chile +56",null,"Burkina Faso","West African CFA franc","XOF - West African CFA franc"]
[null,null,"Central African Republic (the)","CAF","en-us","CDF - Congolese franc","China ","CN","+86","China +86",null,"Burundi","Burundian franc","BIF - Burundian franc"]
[null,null,"Chad","TCD","et","none - Cook Islands dollar","Christmas Island ","CX","+53","Christmas Island +53",null,"Cambodia","Cambodian riel","KHR - Cambodian riel"]
[null,null,"Chile","CHL","fo","CRC - Costa Rican colon","Cocos (Keeling) Islands ","CC","+61","Cocos (Keeling) Islands +61",null,"Cambodia","United States dollar","USD - United States dollar"]
[null,null,"China","CHN","fa","HRK - Croatian kuna","Colombia ","CO","+57","Colombia +57",null,"Cameroon","Central African CFA franc","XAF - Central African CFA franc"]
[null,null,"Christmas Island","CXR","fi","CUP - Cuban peso","Comoros, Union of the ","KM","+269","Comoros, Union of the +269",null,"Canada","Canadian dollar","CAD - Canadian dollar"]
[null,null,"Cocos (Keeling) Islands (the)","CCK","fr-be","ANG - Netherlands Antillean guilder","Congo, Democratic Republic of the (Former Zaire) ","CD","+243","Congo, Democratic Republic of the (Former Zaire) +243",null,"Cape Verde","Cape Verdean escudo","CVE - Cape Verdean escudo"]
[null,null,"Colombia","COL","fr-ca","CZK - Czech koruna","Congo ","CG","+242","Congo +242",null,"Cayman Islands","Cayman Islands dollar","KYD - Cayman Islands dollar"]
[null,null,"Comoros (the)","COM","fr-lu"," - D","Cook Islands (Former Harvey Islands) ","CK","+682","Cook Islands (Former Harvey Islands) +682",null,"Central African Republic","Central African CFA franc","XAF - Central African CFA franc"]
[null,null,"Congo (the Democratic Republic of the)","COD","fr","DKK - Danish krone","Costa Rica ","CR","+506","Costa Rica +506",null,"Chad","Central African CFA franc","XAF - Central African CFA franc"]
[null,null,"Congo (the)","COG","fr-ch","DJF - Djiboutian franc","Cote D'Ivoire (Former Ivory Coast) ","CI","+225","Cote D'Ivoire (Former Ivory Coast) +225",null,"Chile","Chilean peso","CLP - Chilean peso"]
[null,null,"Cook Islands (the)","COK","gd","DOP - Dominican peso","Croatia (Hrvatska) ","HR","+385","Croatia (Hrvatska) +385",null,"China, People's Republic of","Renminbi","CNY - Renminbi"]
[null,null,"Costa Rica","CRI","de-at"," - E","Cuba ","CU","+53","Cuba +53",null,"Colombia","Colombian peso","COP - Colombian peso"]
[null,null,"Croatia","HRV","de-li","EGP - Egyptian pound","Cyprus ","CY","+357","Cyprus +357",null,"Comoros","Comorian franc","KMF - Comorian franc"]
[null,null,"Cuba","CUB","de-lu","ERN - Eritrean nakfa","Czech Republic","CZ","+420","Czech Republic+420",null,"Congo, Democratic Republic of the","Congolese franc","CDF - Congolese franc"]
[null,null,"Curaçao","CUW","de","SZL - Swazi lilangeni","Denmark ","DK","+45","Denmark +45",null,"Congo, Republic of the","Central African CFA franc","XAF - Central African CFA franc"]
[null,null,"Cyprus","CYP","de-ch","ETB - Ethiopian birr","Djibouti (Former French Territory of the Afars and Issas, French Somaliland) ","DJ","+253","Djibouti (Former French Territory of the Afars and Issas, French Somaliland) +253",null,"Cook Islands","Cook Islands dollar","Cook Islands dollar"]
[null,null,"Czechia","CZE","el"," - F","Dominica ","DM","+1-767","Dominica +1-767",null,"Cook Islands","New Zealand dollar","NZD - New Zealand dollar"]
[null,null,"Côte d'Ivoire","CIV","he","FKP - Falkland Islands pound","Dominican Republic ","DO","+1-809 and +1-829  ","Dominican Republic +1-809 and +1-829  ",null,"Costa Rica","Costa Rican colón","CRC - Costa Rican colón"]
[null,null,"Denmark","DNK","hi","none - Faroese krona","East Timor (Former Portuguese Timor) ","TP","+670","East Timor (Former Portuguese Timor) +670",null,"Côte d'Ivoire","West African CFA franc","XOF - West African CFA franc"]
[null,null,"Djibouti","DJI","hu","FJD - Fijian dollar","Ecuador ","EC","+593 ","Ecuador +593 ",null,"Croatia","Euro","EUR - Euro"]
[null,null,"Dominica","DMA","is","XPF - CFP franc","Egypt (Former United Arab Republic - with Syria) ","EG","+20","Egypt (Former United Arab Republic - with Syria) +20",null,"Cuba","Cuban peso","CUP - Cuban peso"]
[null,null,"Dominican Republic (the)","DOM","id"," - G","El Salvador ","SV","+503","El Salvador +503",null,"Curaçao","Netherlands Antillean guilder","ANG - Netherlands Antillean guilder"]
[null,null,"Ecuador","ECU","ga","GMD - Gambian dalasi","Equatorial Guinea (Former Spanish Guinea) ","GQ","+240","Equatorial Guinea (Former Spanish Guinea) +240",null,"Cyprus","Euro","EUR - Euro"]
[null,null,"Egypt","EGY","it","GEL - Georgian lari","Eritrea (Former Eritrea Autonomous Region in Ethiopia) ","ER","+291","Eritrea (Former Eritrea Autonomous Region in Ethiopia) +291",null,"Czech Republic","Czech koruna","CZK - Czech koruna"]
[null,null,"El Salvador","SLV","it-ch","GHS - Ghanaian cedi","Estonia (Former Estonian Soviet Socialist Republic) ","EE","+372",{"$f":"G67&  I67","v":"Estonia (Former Estonian Soviet Socialist Republic) +372"},null,"Denmark","Danish krone","DKK - Danish krone"]
[null,null,"Equatorial Guinea","GNQ","ja","GIP - Gibraltar pound","Ethiopia (Former Abyssinia, Italian East Africa) ","ET","+251","Ethiopia (Former Abyssinia, Italian East Africa) +251",null,"Djibouti","Djiboutian franc","DJF - Djiboutian franc"]
[null,null,"Eritrea","ERI","ko","GTQ - Guatemalan quetzal","Falkland Islands (Islas Malvinas) ","FK","+500","Falkland Islands (Islas Malvinas) +500",null,"Dominica","Eastern Caribbean dollar","XCD - Eastern Caribbean dollar"]
[null,null,"Estonia","EST","ko","GGP - Guernsey Pound","Faroe Islands ","FO","+298","Faroe Islands +298",null,"Dominican Republic","Dominican peso","DOP - Dominican peso"]
[null,null,"Eswatini","SWZ","ku","GNF - Guinean franc","Fiji ","FJ","+679","Fiji +679",null,"East Timor","United States dollar","USD - United States dollar"]
[null,null,"Ethiopia","ETH","lv","GYD - Guyanese dollar","Finland ","FI","+358","Finland +358",null,"Ecuador","United States dollar","USD - United States dollar"]
[null,null,"Falkland Islands (the) [Malvinas]","FLK","lt"," - H","France ","FR","+33","France +33",null,"Egypt","Egyptian pound","EGP - Egyptian pound"]
[null,null,"Faroe Islands (the)","FRO","mk","HTG - Haitian gourde","French Guiana or French Guyana ","GF","+594","French Guiana or French Guyana +594",null,"El Salvador","United States dollar","USD - United States dollar"]
[null,null,"Fiji","FJI","ml","HNL - Honduran lempira","French Polynesia (Former French Colony of Oceania)  ","PF","+689","French Polynesia (Former French Colony of Oceania)  +689",null,"El Salvador","Bitcoin (as legal tender)","Bitcoin (as legal tender)"]
[null,null,"Finland","FIN","ms","HKD - Hong Kong dollar","Gabon (Gabonese Republic)  ","GA","+241","Gabon (Gabonese Republic)  +241",null,"Equatorial Guinea","Central African CFA franc","XAF - Central African CFA franc"]
[null,null,"France","FRA","mt","HUF - Hungarian forint","Gambia ","GM","+220","Gambia +220",null,"Eritrea","Eritrean nakfa","ERN - Eritrean nakfa"]
[null,null,"French Guiana","GUF","no"," - I","Georgia (Former Georgian Soviet Socialist Republic)","GE","+995","Georgia (Former Georgian Soviet Socialist Republic)+995",null,"Estonia","Euro","EUR - Euro"]
[null,null,"French Polynesia","PYF","nb","ISK - Icelandic krona","Germany ","DE","+49","Germany +49",null,"Eswatini","Swazi lilangeni","SZL - Swazi lilangeni"]
[null,null,"French Southern Territories (the)","ATF","nn","INR - Indian rupee","Ghana (Former Gold Coast) ","GH","+233","Ghana (Former Gold Coast) +233",null,"Eswatini","South African rand","ZAR - South African rand"]
[null,null,"Gabon","GAB","pl","IDR - Indonesian rupiah","Gibraltar ","GI","+350","Gibraltar +350",null,"Ethiopia","Ethiopian birr","ETB - Ethiopian birr"]
[null,null,"Gambia (the)","GMB","pt-br","XDR - SDR (Special Drawing Right)","Greece ","GR","+30","Greece +30",null,"Falkland Islands","Falkland Islands pound","FKP - Falkland Islands pound"]
[null,null,"Georgia","GEO","pt","IRR - Iranian rial","Greenland ","GL","+299","Greenland +299",null,"Falkland Islands","Sterling","GBP - Sterling"]
[null,null,"Germany","DEU","pa","IQD - Iraqi dinar","Grenada ","GD","+1-473","Grenada +1-473",null,"Faroe Islands","Danish krone","DKK - Danish krone"]
[null,null,"Ghana","GHA","rm","IMP - Manx pound","Guadeloupe  ","GP","+590","Guadeloupe  +590",null,"Faroe Islands","Faroese króna","Faroese króna"]
[null,null,"Gibraltar","GIB","ro","ILS - Israeli new shekel","Guam  ","GU","+1-671","Guam  +1-671",null,"Fiji","Fijian dollar","FJD - Fijian dollar"]
[null,null,"Greece","GRC","ro-md"," - J","Guatemala ","GT","+502","Guatemala +502",null,"Finland","Euro","EUR - Euro"]
[null,null,"Greenland","GRL","ru","JMD - Jamaican dollar","Guinea (Former French Guinea)  ","GN","+224","Guinea (Former French Guinea)  +224",null,"France","Euro","EUR - Euro"]
[null,null,"Grenada","GRD","ru-md","JPY - Japanese yen","Guinea-Bissau (Former Portuguese Guinea)  ","GW","+245","Guinea-Bissau (Former Portuguese Guinea)  +245",null,"French Polynesia","CFP franc","XPF - CFP franc"]
[null,null,"Guadeloupe","GLP","sr","JEP - Jersey pound","Guyana (Former British Guiana)  ","GY","+592","Guyana (Former British Guiana)  +592",null,"French Southern and Antarctic Lands","Euro","EUR - Euro"]
[null,null,"Guam","GUM","sk","JOD - Jordanian dinar","Haiti ","HT","+509","Haiti +509",null,"Gabon","Central African CFA franc","XAF - Central African CFA franc"]
[null,null,"Guatemala","GTM","sl"," - K","Honduras ","HN","+504","Honduras +504",null,"Gambia, The","Gambian dalasi","GMD - Gambian dalasi"]
[null,null,"Guernsey","GGY","sb","KZT - Kazakhstani tenge","Hong Kong ","HK","+852","Hong Kong +852",null,"Georgia","Georgian lari","GEL - Georgian lari"]
[null,null,"Guinea","GIN","es-ar","KES - Kenyan shilling","Hungary ","HU","+36","Hungary +36",null,"Germany","Euro","EUR - Euro"]
[null,null,"Guinea-Bissau","GNB","es-bo","KWD - Kuwaiti dinar","Iceland ","IS","+354","Iceland +354",null,"Ghana","Ghanaian cedi","GHS - Ghanaian cedi"]
[null,null,"Guyana","GUY","es-cl","KGS - Kyrgyzstani som","India ","IN","+91","India +91",null,"Gibraltar","Gibraltar pound","GIP - Gibraltar pound"]
[null,null,"Haiti","HTI","es-co"," - L","Indonesia (Former Netherlands East Indies; Dutch East Indies)  ","ID","+62","Indonesia (Former Netherlands East Indies; Dutch East Indies)  +62",null,"Gibraltar","Sterling","GBP - Sterling"]
[null,null,"Heard Island and McDonald Islands","HMD","es-cr","LAK - Lao kip","Iran ","IR","+98","Iran +98",null,"Greece","Euro","EUR - Euro"]
[null,null,"Holy See (the)","VAT","es-do","LBP - Lebanese pound","Iraq ","IQ","+964","Iraq +964",null,"Greenland","Danish krone","DKK - Danish krone"]
[null,null,"Honduras","HND","es-ec","LSL - Lesotho loti","Ireland ","IE","+353","Ireland +353",null,"Grenada","Eastern Caribbean dollar","XCD - Eastern Caribbean dollar"]
[null,null,"Hong Kong","HKG","es-sv","LRD - Liberian dollar","Israel ","IL","+972","Israel +972",null,"Guatemala","Guatemalan quetzal","GTQ - Guatemalan quetzal"]
[null,null,"Hungary","HUN","es-gt","LYD - Libyan dinar","Italy ","IT","+39","Italy +39",null,"Bailiwick of Guernsey","Guernsey pound","Guernsey pound"]
[null,null,"Iceland","ISL","es-hn","CHF - Swiss franc","Jamaica ","JM","+1-876","Jamaica +1-876",null,"Bailiwick of Guernsey","Sterling","GBP - Sterling"]
[null,null,"India","IND","es-mx"," - M","Japan ","JP","+81","Japan +81",null,"Guinea","Guinean franc","GNF - Guinean franc"]
[null,null,"Indonesia","IDN","es-ni","MOP - Macanese pataca","Jordan (Former Transjordan) ","JO","+962","Jordan (Former Transjordan) +962",null,"Guinea-Bissau","West African CFA franc","XOF - West African CFA franc"]
[null,null,"Iran (Islamic Republic of)","IRN","es-pa","MGA - Malagasy ariary","Kazakstan or Kazakhstan (Former Kazakh Soviet Socialist Republic)  ","KZ","+7","Kazakstan or Kazakhstan (Former Kazakh Soviet Socialist Republic)  +7",null,"Guyana","Guyanese dollar","GYD - Guyanese dollar"]
[null,null,"Iraq","IRQ","es-py","MWK - Malawian kwacha","Kenya (Former British East Africa)","KE","+254","Kenya (Former British East Africa)+254",null,"Haiti","Haitian gourde","HTG - Haitian gourde"]
[null,null,"Ireland","IRL","es-pe","MYR - Malaysian ringgit","Kiribati (Pronounced keer-ree-bahss) (Former Gilbert Islands)  ","KI","+686","Kiribati (Pronounced keer-ree-bahss) (Former Gilbert Islands)  +686",null,"Honduras","Honduran lempira","HNL - Honduran lempira"]
[null,null,"Isle of Man","IMN","es-pr","MVR - Maldivian rufiyaa","Korea, Democratic People's Republic of (North Korea)  ","KP","+850","Korea, Democratic People's Republic of (North Korea)  +850",null,"Hong Kong","Hong Kong dollar","HKD - Hong Kong dollar"]
[null,null,"Israel","ISR","es","MRU - Mauritanian ouguiya","Korea, Republic of (South Korea)  ","KR","+82","Korea, Republic of (South Korea)  +82",null,"Hungary","Hungarian forint","HUF - Hungarian forint"]
[null,null,"Italy","ITA","es-uy","MUR - Mauritian rupee","Kuwait ","KW","+965","Kuwait +965",null,"Iceland","Icelandic króna","ISK - Icelandic króna"]
[null,null,"Jamaica","JAM","es-ve","MXN - Mexican peso","Kyrgyzstan (Kyrgyz Republic) (Former Kirghiz Soviet Socialist Republic)   ","KG","+996","Kyrgyzstan (Kyrgyz Republic) (Former Kirghiz Soviet Socialist Republic)   +996",null,"India","Indian rupee","INR - Indian rupee"]
[null,null,"Japan","JPN","sv","MDL - Moldovan leu","Lao People's Democratic Republic (Laos)   ","LA","+856","Lao People's Democratic Republic (Laos)   +856",null,"Indonesia","Indonesian rupiah","IDR - Indonesian rupiah"]
[null,null,"Jersey","JEY","sv-fi","MNT - Mongolian tugrik","Latvia (Former Latvian Soviet Socialist Republic)  ","LV","+371","Latvia (Former Latvian Soviet Socialist Republic)  +371",null,"Iran","Iranian rial","IRR - Iranian rial"]
[null,null,"Jordan","JOR","th","MAD - Moroccan dirham","Lebanon ","LB","+961","Lebanon +961",null,"Iraq","Iraqi dinar","IQD - Iraqi dinar"]
[null,null,"Kazakhstan","KAZ","ts","MZN - Mozambican metical","Lesotho (Former Basutoland)  ","LS","+266","Lesotho (Former Basutoland)  +266",null,"Ireland","Euro","EUR - Euro"]
[null,null,"Kenya","KEN","tn","MMK - Myanmar kyat","Liberia ","LR","+231","Liberia +231",null,"Isle of Man","Manx pound","Manx pound"]
[null,null,"Kiribati","KIR","tr"," - N","Libya (Libyan Arab Jamahiriya)  ","LY","+218","Libya (Libyan Arab Jamahiriya)  +218",null,"Isle of Man","Sterling","GBP - Sterling"]
[null,null,"Korea (the Democratic People's Republic of)","PRK","ua","NAD - Namibian dollar","Liechtenstein ","LI","+423","Liechtenstein +423",null,"Israel","Israeli new shekel","ILS - Israeli new shekel"]
[null,null,"Korea (the Republic of)","KOR","ur","NPR - Nepalese rupee","Lithuania (Former Lithuanian Soviet Socialist Republic)  ","LT","+370","Lithuania (Former Lithuanian Soviet Socialist Republic)  +370",null,"Italy","Euro","EUR - Euro"]
[null,null,"Kuwait","KWT","ve","NIO - Nicaraguan cordoba","Luxembourg ","LU","+352","Luxembourg +352",null,"Jamaica","Jamaican dollar","JMD - Jamaican dollar"]
[null,null,"Kyrgyzstan","KGZ","vi","NGN - Nigerian naira","Macau ","MO","+853","Macau +853",null,"Japan","Japanese yen","JPY - Japanese yen"]
[null,null,"Lao People's Democratic Republic (the)","LAO","cy","KPW - North Korean won","Macedonia, The Former Yugoslav Republic   ","MK","+389","Macedonia, The Former Yugoslav Republic   +389",null,"Jersey","Jersey pound","Jersey pound"]
[null,null,"Latvia","LVA","xh","MKD - Macedonian denar","Madagascar (Former Malagasy Republic)  ","MG","+261","Madagascar (Former Malagasy Republic)  +261",null,"Jersey","Sterling","GBP - Sterling"]
[null,null,"Lebanon","LBN","ji","NOK - Norwegian krone","Malawi (Former British Central African Protectorate, Nyasaland)  ","MW","+265","Malawi (Former British Central African Protectorate, Nyasaland)  +265",null,"Jordan","Jordanian dinar","JOD - Jordanian dinar"]
[null,null,"Lesotho","LSO",null," - O","Malaysia ","MY","+60","Malaysia +60",null,"Kazakhstan","Kazakhstani tenge","KZT - Kazakhstani tenge"]
[null,null,"Liberia","LBR",null,"OMR - Omani rial","Maldives ","MV","+960","Maldives +960",null,"Kenya","Kenyan shilling","KES - Kenyan shilling"]
[null,null,"Libya","LBY",null," - P","Mali (Former French Sudan and Sudanese Republic) ","ML","+223","Mali (Former French Sudan and Sudanese Republic) +223",null,"Kiribati","Kiribati dollar","Kiribati dollar"]
[null,null,"Liechtenstein","LIE",null,"PKR - Pakistani rupee","Malta ","MT","+356","Malta +356",null,"Kiribati","Australian dollar","AUD - Australian dollar"]
[null,null,"Lithuania","LTU",null,"PGK - Papua New Guinean kina","Marshall Islands (Former Marshall Islands District - Trust Territory of the Pacific Islands)  ","MH","+692","Marshall Islands (Former Marshall Islands District - Trust Territory of the Pacific Islands)  +692",null,"Korea, North","North Korean won","KPW - North Korean won"]
[null,null,"Luxembourg","LUX",null,"PYG - Paraguayan guarani","Martinique (French) ","MQ","+596",{"$f":"G131&  I131","v":"Martinique (French) +596"},null,"Korea, South","South Korean won","KRW - South Korean won"]
[null,null,"Macao","MAC",null,"PEN - Peruvian sol","Mauritania ","MR","+222","Mauritania +222",null,"Kosovo","Euro","EUR - Euro"]
[null,null,"Madagascar","MDG",null,"PHP - Philippine peso","Mauritius ","MU","+230","Mauritius +230",null,"Kuwait","Kuwaiti dinar","KWD - Kuwaiti dinar"]
[null,null,"Malawi","MWI",null,"PLN - Polish zloty","Mayotte (Territorial Collectivity of Mayotte)  ","YT","+269","Mayotte (Territorial Collectivity of Mayotte)  +269",null,"Kyrgyzstan","Kyrgyz som","KGS - Kyrgyz som"]
[null,null,"Malaysia","MYS",null," - Q","Mexico ","MX","+52","Mexico +52",null,"Laos","Lao kip","LAK - Lao kip"]
[null,null,"Maldives","MDV",null,"QAR - Qatari riyal","Micronesia, Federated States of (Former Ponape, Truk, and Yap Districts - Trust Territory of the Pacific Islands)  ","FM","+691","Micronesia, Federated States of (Former Ponape, Truk, and Yap Districts - Trust Territory of the Pacific Islands)  +691",null,"Latvia","Euro","EUR - Euro"]
[null,null,"Mali","MLI",null," - R","Moldova, Republic of","MD","+373","Moldova, Republic of+373",null,"Lebanon","Lebanese pound","LBP - Lebanese pound"]
[null,null,"Malta","MLT",null,"RON - Romanian leu","Monaco  ","MC","+377","Monaco  +377",null,"Lesotho","Lesotho loti","LSL - Lesotho loti"]
[null,null,"Marshall Islands (the)","MHL",null,"RUB - Russian ruble","Mongolia (Former Outer Mongolia)  ","MN","+976","Mongolia (Former Outer Mongolia)  +976",null,"Lesotho","South African rand","ZAR - South African rand"]
[null,null,"Martinique","MTQ",null,"RWF - Rwandan franc","Montserrat ","MS","+1-664","Montserrat +1-664",null,"South Georgia and the South Sandwich Islands","Falkland Islands pound","FKP - Falkland Islands pound"]
[null,null,"Mauritania","MRT",null," - S","Morocco ","MA","+212","Morocco +212",null,"South Georgia and the South Sandwich Islands","Sterling","GBP - Sterling"]
[null,null,"Mauritius","MUS",null,"WST - Samoan tala","Mozambique (Former Portuguese East Africa)  ","MZ","+258","Mozambique (Former Portuguese East Africa)  +258",null,"Liberia","Liberian dollar","LRD - Liberian dollar"]
[null,null,"Mayotte","MYT",null,"STN - Sao Tome and Principe dobra","Myanmar, Union of (Former Burma)  ","MM","+95","Myanmar, Union of (Former Burma)  +95",null,"Liberia","United States dollar","USD - United States dollar"]
[null,null,"Mexico","MEX",null,"SAR - Saudi Arabian riyal","Namibia (Former German Southwest Africa, South-West Africa)  ","NA","+264","Namibia (Former German Southwest Africa, South-West Africa)  +264",null,"Libya","Libyan dinar","LYD - Libyan dinar"]
[null,null,"Micronesia (Federated States of)","FSM",null,"RSD - Serbian dinar","Nauru (Former Pleasant Island)  ","NR","+674","Nauru (Former Pleasant Island)  +674",null,"Liechtenstein","Swiss franc","CHF - Swiss franc"]
[null,null,"Moldova (the Republic of)","MDA",null,"SCR - Seychellois rupee","Nepal ","NP","+977","Nepal +977",null,"Lithuania","Euro","EUR - Euro"]
[null,null,"Monaco","MCO",null,"SLL - Sierra Leonean leone","Netherlands ","NL","+31","Netherlands +31",null,"Luxembourg","Euro","EUR - Euro"]
[null,null,"Mongolia","MNG",null,"SGD - Singapore dollar","Netherlands Antilles (Former Curacao and Dependencies)  ","AN","+599","Netherlands Antilles (Former Curacao and Dependencies)  +599",null,"Macau","Macanese pataca","MOP - Macanese pataca"]
[null,null,"Montenegro","MNE",null,"SBD - Solomon Islands dollar","New Caledonia ","NC","+687","New Caledonia +687",null,"Macau","Hong Kong dollar","HKD - Hong Kong dollar"]
[null,null,"Montserrat","MSR",null,"SOS - Somali shilling","New Zealand (Aotearoa) ","NZ","+64","New Zealand (Aotearoa) +64",null,"Madagascar","Malagasy ariary","MGA - Malagasy ariary"]
[null,null,"Morocco","MAR",null,"ZAR - South African rand","Nicaragua ","NI","+505","Nicaragua +505",null,"Malawi","Malawian kwacha","MWK - Malawian kwacha"]
[null,null,"Mozambique","MOZ",null,"GBP - Pound sterling","Niger ","NE","+227","Niger +227",null,"Malaysia","Malaysian ringgit","MYR - Malaysian ringgit"]
[null,null,"Myanmar","MMR",null,"KRW - South Korean won","Nigeria ","NG","+234","Nigeria +234",null,"Maldives","Maldivian rufiyaa","MVR - Maldivian rufiyaa"]
[null,null,"Namibia","NAM",null,"SSP - South Sudanese pound","Niue (Former Savage Island)  ","NU","+683","Niue (Former Savage Island)  +683",null,"Mali","West African CFA franc","XOF - West African CFA franc"]
[null,null,"Nauru","NRU",null,"LKR - Sri Lankan rupee","Norfolk Island ","NF","+672","Norfolk Island +672",null,"Malta","Euro","EUR - Euro"]
[null,null,"Nepal","NPL",null,"SDG - Sudanese pound","Northern Mariana Islands (Former Mariana Islands District - Trust Territory of the Pacific Islands)  ","MP","+1-670","Northern Mariana Islands (Former Mariana Islands District - Trust Territory of the Pacific Islands)  +1-670",null,"Marshall Islands","United States dollar","USD - United States dollar"]
[null,null,"Netherlands (the)","NLD",null,"SRD - Surinamese dollar","Norway ","NO","+47","Norway +47",null,"Mauritania","Mauritanian ouguiya","MRU - Mauritanian ouguiya"]
[null,null,"New Caledonia","NCL",null,"SEK - Swedish krona","Oman, Sultanate of (Former Muscat and Oman)  ","OM","+968","Oman, Sultanate of (Former Muscat and Oman)  +968",null,"Mauritius","Mauritian rupee","MUR - Mauritian rupee"]
[null,null,"New Zealand","NZL",null,"SYP - Syrian pound","Pakistan (Former West Pakistan) ","PK","+92","Pakistan (Former West Pakistan) +92",null,"Mexico","Mexican peso","MXN - Mexican peso"]
[null,null,"Nicaragua","NIC",null," - T","Palau (Former Palau District - Trust Terriroty of the Pacific Islands)  ","PW","+680","Palau (Former Palau District - Trust Terriroty of the Pacific Islands)  +680",null,"Micronesia","United States dollar","USD - United States dollar"]
[null,null,"Niger (the)","NER",null,"TWD - New Taiwan dollar","Palestinian State (Proposed)  ","PS","+970","Palestinian State (Proposed)  +970",null,"Moldova","Moldovan leu","MDL - Moldovan leu"]
[null,null,"Nigeria","NGA",null,"TJS - Tajikistani somoni","Panama ","PA","+507","Panama +507",null,"Monaco","Euro","EUR - Euro"]
[null,null,"Niue","NIU",null,"TZS - Tanzanian shilling","Papua New Guinea (Former Territory of Papua and New Guinea)  ","PG","+675","Papua New Guinea (Former Territory of Papua and New Guinea)  +675",null,"Mongolia","Mongolian tögrög","MNT - Mongolian tögrög"]
[null,null,"Norfolk Island","NFK",null,"THB - Thai baht","Paraguay ","PY","+595","Paraguay +595",null,"Montenegro","Euro","EUR - Euro"]
[null,null,"Northern Mariana Islands (the)","MNP",null,"TOP - Tongan pa’anga","Peru ","PE","+51","Peru +51",null,"Montserrat","Eastern Caribbean dollar","XCD - Eastern Caribbean dollar"]
[null,null,"Norway","NOR",null,"TTD - Trinidad and Tobago dollar","Philippines ","PH","+63","Philippines +63",null,"Morocco","Moroccan dirham","MAD - Moroccan dirham"]
[null,null,"Oman","OMN",null,"TND - Tunisian dinar","Poland ","PL","+48","Poland +48",null,"Mozambique","Mozambican metical","MZN - Mozambican metical"]
[null,null,"Pakistan","PAK",null,"TRY - Turkish lira","Portugal ","PT","+351","Portugal +351",null,"Myanmar","Burmese kyat","MMK - Burmese kyat"]
[null,null,"Palau","PLW",null,"TMT - Turkmen manat","Puerto Rico ","PR","+1-787 or +1-939","Puerto Rico +1-787 or +1-939",null,"Namibia","Namibian dollar","NAD - Namibian dollar"]
[null,null,"Palestine, State of","PSE",null," - U","Qatar, State of ","QA","+974 ","Qatar, State of +974 ",null,"Namibia","South African rand","ZAR - South African rand"]
[null,null,"Panama","PAN",null,"UGX - Ugandan shilling","Reunion (French) (Former Bourbon Island)  ","RE","+262","Reunion (French) (Former Bourbon Island)  +262",null,"Nauru","Australian dollar","AUD - Australian dollar"]
[null,null,"Papua New Guinea","PNG",null,"UAH - Ukrainian hryvnia","Romania ","RO","+40","Romania +40",null,"Nepal","Nepalese rupee","NPR - Nepalese rupee"]
[null,null,"Paraguay","PRY",null,"AED - UAE dirham","Russian Federation ","RU","+7","Russian Federation +7",null,"Nepal","Indian rupee","INR - Indian rupee"]
[null,null,"Peru","PER",null,"UYU - Uruguayan peso","Rwanda (Rwandese Republic) (Former Ruanda) ","RW","+250","Rwanda (Rwandese Republic) (Former Ruanda) +250",null,"Netherlands","Euro","EUR - Euro"]
[null,null,"Philippines (the)","PHL",null,"UZS - Uzbekistani som","Saint Helena ","SH","+290","Saint Helena +290",null,"New Caledonia","CFP franc","XPF - CFP franc"]
[null,null,"Pitcairn","PCN",null," - V","Saint Kitts and Nevis (Former Federation of Saint Christopher and Nevis) ","KN","+1-869","Saint Kitts and Nevis (Former Federation of Saint Christopher and Nevis) +1-869",null,"New Zealand","New Zealand dollar","NZD - New Zealand dollar"]
[null,null,"Poland","POL",null,"VUV - Vanuatu vatu","Saint Lucia ","LC","+1-758","Saint Lucia +1-758",null,"Nicaragua","Nicaraguan córdoba","NIO - Nicaraguan córdoba"]
[null,null,"Portugal","PRT",null,"VES - Venezuelan bolivar","Saint Pierre and Miquelon ","PM","+508","Saint Pierre and Miquelon +508",null,"Niger","West African CFA franc","XOF - West African CFA franc"]
[null,null,"Puerto Rico","PRI",null,"VND - Vietnamese dong","Saint Vincent and the Grenadines ","VC","+1-784","Saint Vincent and the Grenadines +1-784",null,"Nigeria","Nigerian naira","NGN - Nigerian naira"]
[null,null,"Qatar","QAT",null," - W","Samoa (Former Western Samoa) ","WS","+685","Samoa (Former Western Samoa) +685",null,"Niue","New Zealand dollar","NZD - New Zealand dollar"]
[null,null,"Republic of North Macedonia","MKD",null," - Y","San Marino ","SM","+378","San Marino +378",null,"Niue","Niue dollar","Niue dollar"]
[null,null,"Romania","ROU",null,"YER - Yemeni rial","Sao Tome and Principe ","ST","+239","Sao Tome and Principe +239",null,"North Macedonia","Macedonian denar","MKD - Macedonian denar"]
[null,null,"Russian Federation (the)","RUS",null," - Z","Saudi Arabia ","SA","+966","Saudi Arabia +966",null,"Northern Cyprus","Turkish lira","TRY - Turkish lira"]
[null,null,"Rwanda","RWA",null,"ZMW - Zambian kwacha","Senegal ","SN","+221","Senegal +221",null,"Norway","Norwegian krone","NOK - Norwegian krone"]
[null,null,"Réunion","REU",null,null,"Seychelles ","SC","+248","Seychelles +248",null,"Oman","Omani rial","OMR - Omani rial"]
[null,null,"Saint Barthélemy","BLM",null,null,"Sierra Leone ","SL","+232","Sierra Leone +232",null,"Pakistan","Pakistani rupee","PKR - Pakistani rupee"]
[null,null,"Saint Helena, Ascension and Tristan da Cunha","SHN",null,null,"Singapore ","SG","+65","Singapore +65",null,"Palau","United States dollar","USD - United States dollar"]
[null,null,"Saint Kitts and Nevis","KNA",null,null,"Slovakia  ","SK","+421","Slovakia  +421",null,"Palestine","Israeli new shekel","ILS - Israeli new shekel"]
[null,null,"Saint Lucia","LCA",null,null,"Slovenia ","SI","+386","Slovenia +386",null,"Palestine","Jordanian dinar","JOD - Jordanian dinar"]
[null,null,"Saint Martin (French part)","MAF",null,null,"Solomon Islands (Former British Solomon Islands) ","SB","+677","Solomon Islands (Former British Solomon Islands) +677",null,"Panama","Panamanian balboa","PAB - Panamanian balboa"]
[null,null,"Saint Pierre and Miquelon","SPM",null,null,"Somalia (Former Somali Republic, Somali Democratic Republic) ","SO","+252","Somalia (Former Somali Republic, Somali Democratic Republic) +252",null,"Panama","United States dollar","USD - United States dollar"]
[null,null,"Saint Vincent and the Grenadines","VCT",null,null,"South Africa (Former Union of South Africa) ","ZA","+27","South Africa (Former Union of South Africa) +27",null,"Papua New Guinea","Papua New Guinean kina","PGK - Papua New Guinean kina"]
[null,null,"Samoa","WSM",null,null,"Spain ","ES","+34","Spain +34",null,"Paraguay","Paraguayan guaraní","PYG - Paraguayan guaraní"]
[null,null,"San Marino","SMR",null,null,"Sri Lanka (Former Serendib, Ceylon) ","LK","+94","Sri Lanka (Former Serendib, Ceylon) +94",null,"Peru","Peruvian sol","PEN - Peruvian sol"]
[null,null,"Sao Tome and Principe","STP",null,null,"Sudan (Former Anglo-Egyptian Sudan) ","SD","+249",{"$f":"G195&  I195","v":"Sudan (Former Anglo-Egyptian Sudan) +249"},null,"Philippines","Philippine peso","PHP - Philippine peso"]
[null,null,"Saudi Arabia","SAU",null,null,"Suriname (Former Netherlands Guiana, Dutch Guiana) ","SR","+597","Suriname (Former Netherlands Guiana, Dutch Guiana) +597",null,"Pitcairn Islands","New Zealand dollar","NZD - New Zealand dollar"]
[null,null,"Senegal","SEN",null,null,"Swaziland, Kingdom of ","SZ","+268","Swaziland, Kingdom of +268",null,"Pitcairn Islands","Pitcairn Islands dollar","Pitcairn Islands dollar"]
[null,null,"Serbia","SRB",null,null,"Sweden ","SE","+46","Sweden +46",null,"Poland","Polish złoty","PLN - Polish złoty"]
[null,null,"Seychelles","SYC",null,null,"Switzerland ","CH","+41","Switzerland +41",null,"Portugal","Euro","EUR - Euro"]
[null,null,"Sierra Leone","SLE",null,null,"Syria (Syrian Arab Republic) (Former United Arab Republic - with Egypt) ","SY","+963","Syria (Syrian Arab Republic) (Former United Arab Republic - with Egypt) +963",null,"Qatar","Qatari riyal","QAR - Qatari riyal"]
[null,null,"Singapore","SGP",null,null,"Taiwan (Former Formosa) ","TW","+886","Taiwan (Former Formosa) +886",null,"Romania","Romanian leu","RON - Romanian leu"]
[null,null,"Sint Maarten (Dutch part)","SXM",null,null,"Tajikistan (Former Tajik Soviet Socialist Republic) ","TJ","+992","Tajikistan (Former Tajik Soviet Socialist Republic) +992",null,"Russia","Russian ruble","RUB - Russian ruble"]
[null,null,"Slovakia","SVK",null,null,"Tanzania, United Republic of (Former United Republic of Tanganyika and Zanzibar) ","TZ","+255","Tanzania, United Republic of (Former United Republic of Tanganyika and Zanzibar) +255",null,"Rwanda","Rwandan franc","RWF - Rwandan franc"]
[null,null,"Slovenia","SVN",null,null,"Thailand (Former Siam) ","TH","+66","Thailand (Former Siam) +66",null,"Saba","United States dollar","USD - United States dollar"]
[null,null,"Solomon Islands","SLB",null,null,"Tokelau ","TK","+690","Tokelau +690",null,"Sahrawi Republic[I]","Moroccan dirham","MAD - Moroccan dirham"]
[null,null,"Somalia","SOM",null,null,"Tonga, Kingdom of (Former Friendly Islands) ","TO","+676","Tonga, Kingdom of (Former Friendly Islands) +676",null,"Sahrawi Republic[I]","Sahrawi peseta","Sahrawi peseta"]
[null,null,"South Africa","ZAF",null,null,"Trinidad and Tobago ","TT","+1-868","Trinidad and Tobago +1-868",null,"Saint Helena","Saint Helena pound","SHP - Saint Helena pound"]
[null,null,"South Georgia and the South Sandwich Islands","SGS",null,null,"Tunisia ","TN","+216","Tunisia +216",null,"Saint Helena","Sterling","GBP - Sterling"]
[null,null,"South Sudan","SSD",null,null,"Turkey ","TR","+90","Turkey +90",null,"Saint Kitts and Nevis","Eastern Caribbean dollar","XCD - Eastern Caribbean dollar"]
[null,null,"Spain","ESP",null,null,"Turkmenistan (Former Turkmen Soviet Socialist Republic) ","TM","+993","Turkmenistan (Former Turkmen Soviet Socialist Republic) +993",null,"Saint Lucia","Eastern Caribbean dollar","XCD - Eastern Caribbean dollar"]
[null,null,"Sri Lanka","LKA",null,null,"Turks and Caicos Islands ","TC","+1-649","Turks and Caicos Islands +1-649",null,"Saint Pierre and Miquelon","Euro","EUR - Euro"]
[null,null,"Sudan (the)","SDN",null,null,"Tuvalu (Former Ellice Islands) ","TV","+688","Tuvalu (Former Ellice Islands) +688",null,"Saint Pierre and Miquelon","Canadian Dollar","CAD - Canadian Dollar"]
[null,null,"Suriname","SUR",null,null,"Uganda  ","UG","+256","Uganda  +256",null,"American Samoa","Samoan tālā","WST - Samoan tālā"]
[null,null,"Svalbard and Jan Mayen","SJM",null,null,"Ukraine (Former Ukrainian National Republic, Ukrainian State, Ukrainian Soviet Socialist Republic)  ","UA","+380","Ukraine (Former Ukrainian National Republic, Ukrainian State, Ukrainian Soviet Socialist Republic)  +380",null,"Saint Barthélemy","Euro","EUR - Euro"]
[null,null,"Sweden","SWE",null,null,"United Arab Emirates (UAE) (Former Trucial Oman, Trucial States)  ","AE","+971","United Arab Emirates (UAE) (Former Trucial Oman, Trucial States)  +971",null,"San Marino","Euro","EUR - Euro"]
[null,null,"Switzerland","CHE",null,null,"United Kingdom (Great Britain / UK)  ","GB","+44","United Kingdom (Great Britain / UK)  +44",null,"São Tomé and Príncipe","São Tomé and Príncipe dobra","STN - São Tomé and Príncipe dobra"]
[null,null,"Syrian Arab Republic","SYR",null,null,"United States ","US","+1","United States +1",null,"Saudi Arabia","Saudi riyal","SAR - Saudi riyal"]
[null,null,"Taiwan (Province of China)","TWN",null,null,"Uruguay, Oriental Republic of (Former Banda Oriental, Cisplatine Province)  ","UY","+598","Uruguay, Oriental Republic of (Former Banda Oriental, Cisplatine Province)  +598",null,"Senegal","West African CFA franc","XOF - West African CFA franc"]
[null,null,"Tajikistan","TJK",null,null,"Uzbekistan (Former UZbek Soviet Socialist Republic)  ","UZ","+998","Uzbekistan (Former UZbek Soviet Socialist Republic)  +998",null,"Serbia","Serbian dinar","RSD - Serbian dinar"]
[null,null,"Tanzania, United Republic of","TZA",null,null,"Vanuatu (Former New Hebrides)  ","VU","+678","Vanuatu (Former New Hebrides)  +678",null,"Seychelles","Seychellois rupee","SCR - Seychellois rupee"]
[null,null,"Thailand","THA",null,null,"Vatican City State (Holy See)  ","VA","+418","Vatican City State (Holy See)  +418",null,"Sierra Leone","Sierra Leonean leone","SLE - Sierra Leonean leone"]
[null,null,"Timor-Leste","TLS",null,null,"Venezuela ","VE","+58","Venezuela +58",null,"Singapore","Singapore dollar","SGD - Singapore dollar"]
[null,null,"Togo","TGO",null,null,"Vietnam ","VN","+84","Vietnam +84",null,"Singapore","Brunei dollar","BND - Brunei dollar"]
[null,null,"Tokelau","TKL",null,null,"Virgin Islands, British ","VI","+1-284","Virgin Islands, British +1-284",null,"Sint Eustatius","United States dollar","USD - United States dollar"]
[null,null,"Tonga","TON",null,null,"Virgin Islands, United States (Former Danish West Indies) ","VQ","+1-340","Virgin Islands, United States (Former Danish West Indies) +1-340",null,"Sint Maarten","Netherlands Antillean guilder","ANG - Netherlands Antillean guilder"]
[null,null,"Trinidad and Tobago","TTO",null,null,"Wallis and Futuna Islands ","WF","+681","Wallis and Futuna Islands +681",null,"Slovakia","Euro","EUR - Euro"]
[null,null,"Tunisia","TUN",null,null,"Yemen ","YE","+967","Yemen +967",null,"Slovenia","Euro","EUR - Euro"]
[null,null,"Turkey","TUR",null,null,"Zambia, Republic of (Former Northern Rhodesia) ","ZM","+260","Zambia, Republic of (Former Northern Rhodesia) +260",null,"Solomon Islands","Solomon Islands dollar","SBD - Solomon Islands dollar"]
[null,null,"Turkmenistan","TKM",null,null,"Zimbabwe, Republic of (Former Southern Rhodesia, Rhodesia) ","ZW","+263","Zimbabwe, Republic of (Former Southern Rhodesia, Rhodesia) +263",null,"Somalia","Somali shilling","SOS - Somali shilling"]
[null,null,"Turks and Caicos Islands (the)","TCA",null,null,null,null,null,null,null,"Somaliland","Somaliland shilling","Somaliland shilling"]
[null,null,"Tuvalu","TUV",null,null,null,null,null,null,null,"South Africa","South African rand","ZAR - South African rand"]
[null,null,"Uganda","UGA",null,null,null,null,null,null,null,"South Ossetia","Russian ruble","RUB - Russian ruble"]
[null,null,"Ukraine","UKR",null,null,null,null,null,null,null,"South Sudan","South Sudanese pound","SSP - South Sudanese pound"]
[null,null,"United Arab Emirates (the)","ARE",null,null,null,null,null,null,null,"Spain","Euro","EUR - Euro"]
[null,null,"United Kingdom of Great Britain and Northern Ireland (the)","GBR",null,null,null,null,null,null,null,"Sri Lanka","Sri Lankan rupee","LKR - Sri Lankan rupee"]
[null,null,"United States Minor Outlying Islands (the)","UMI",null,null,null,null,null,null,null,"Sudan","Sudanese pound","SDG - Sudanese pound"]
[null,null,"United States of America (the)","USA",null,null,null,null,null,null,null,"Suriname","Surinamese dollar","SRD - Surinamese dollar"]
[null,null,"Uruguay","URY",null,null,null,null,null,null,null,"Sweden","Swedish krona","SEK - Swedish krona"]
[null,null,"Uzbekistan","UZB",null,null,null,null,null,null,null,"Switzerland","Swiss franc","CHF - Swiss franc"]
[null,null,"Vanuatu","VUT",null,null,null,null,null,null,null,"Syria","Syrian pound","SYP - Syrian pound"]
[null,null,"Venezuela (Bolivarian Republic of)","VEN",null,null,null,null,null,null,null,"Taiwan / Republic of China","New Taiwan dollar","TWD - New Taiwan dollar"]
[null,null,"Viet Nam","VNM",null,null,null,null,null,null,null,"Tajikistan","Tajikistani somoni","TJS - Tajikistani somoni"]
[null,null,"Virgin Islands (British)","VGB",null,null,null,null,null,null,null,"Tanzania","Tanzanian shilling","TZS - Tanzanian shilling"]
[null,null,"Virgin Islands (U.S.)","VIR",null,null,null,null,null,null,null,"Thailand","Thai baht","THB - Thai baht"]
[null,null,"Wallis and Futuna","WLF",null,null,null,null,null,null,null,"Togo","West African CFA franc","XOF - West African CFA franc"]
[null,null,"Western Sahara","ESH",null,null,null,null,null,null,null,"Tonga","Tongan paʻanga","TOP - Tongan paʻanga"]
[null,null,"Yemen","YEM",null,null,null,null,null,null,null,"Transnistria","Transnistrian ruble","Transnistrian ruble"]
[null,null,"Zambia","ZMB",null,null,null,null,null,null,null,"Trinidad and Tobago","Trinidad and Tobago dollar","TTD - Trinidad and Tobago dollar"]
[null,null,"Zimbabwe","ZWE",null,null,null,null,null,null,null,"Tunisia","Tunisian dinar","TND - Tunisian dinar"]
[null,null,"Åland Islands","ALA",null,null,null,null,null,null,null,"Turkey","Turkish lira","TRY - Turkish lira"]
[null,null,null,null,null,null,null,null,null,null,null,"Turkmenistan","Turkmenistani manat","TMT - Turkmenistani manat"]
[null,null,null,null,null,null,null,null,null,null,null,"Turks and Caicos Islands","United States dollar","USD - United States dollar"]
[null,null,null,null,null,null,null,null,null,null,null,"Tuvalu","Tuvaluan dollar","Tuvaluan dollar"]
[null,null,null,null,null,null,null,null,null,null,null,"Tuvalu","Australian dollar","AUD - Australian dollar"]
[null,null,null,null,null,null,null,null,null,null,null,"Uganda","Ugandan shilling","UGX - Ugandan shilling"]
[null,null,null,null,null,null,null,null,null,null,null,"Ukraine","Ukrainian hryvnia","UAH - Ukrainian hryvnia"]
[null,null,null,null,null,null,null,null,null,null,null,"United Arab Emirates","United Arab Emirates dirham","AED - United Arab Emirates dirham"]
[null,null,null,null,null,null,null,null,null,null,null,"United Kingdom","Sterling","GBP - Sterling"]
[null,null,null,null,null,null,null,null,null,null,null,"United States","United States dollar","USD - United States dollar"]
[null,null,null,null,null,null,null,null,null,null,null,"Uruguay","Uruguayan peso","UYU - Uruguayan peso"]
[null,null,null,null,null,null,null,null,null,null,null,"Uzbekistan","Uzbekistani sum","UZS - Uzbekistani sum"]
[null,null,null,null,null,null,null,null,null,null,null,"Vanuatu","Vanuatu vatu","VUV - Vanuatu vatu"]
[null,null,null,null,null,null,null,null,null,null,null,"Vatican City","Euro","EUR - Euro"]
[null,null,null,null,null,null,null,null,null,null,null,"Venezuela","Venezuelan sovereign bolívar","VES - Venezuelan sovereign bolívar"]
[null,null,null,null,null,null,null,null,null,null,null,"Venezuela","Venezuelan digital bolívar","VED - Venezuelan digital bolívar"]
[null,null,null,null,null,null,null,null,null,null,null,"Vietnam","Vietnamese đồng","VND - Vietnamese đồng"]
[null,null,null,null,null,null,null,null,null,null,null,"Wallis and Futuna","CFP franc","XPF - CFP franc"]
[null,null,null,null,null,null,null,null,null,null,null,"Yemen","Yemeni rial","YER - Yemeni rial"]
[null,null,null,null,null,null,null,null,null,null,null,"Zambia","Zambian kwacha","ZMW - Zambian kwacha"]
[null,null,null,null,null,null,null,null,null,null,null,"Zimbabwe","Zimbabwean dollar"," Zimbabwean dollar"]
[null,null,null,null,null,null,null,null,null,null,null,"Zimbabwe","United States dollar","USD - United States dollar"]